bitfinex-derivatives/quotes_ETHF0:USTF0_20250308
["timestamp","ask_amount","ask_price","bid_price","bid_amount"]
[1741473141358,3.2065,2211.3,2211.1,6.2461]
[1741473141848,3.2065,2211.3,2211.1,9.4555]
[1741473142761,3.2841,2211.6,2211.1,9.4555]
[1741473142955,5.1074,2211.6,2211.1,12.6247]
[1741473146261,3.1144,2211.6,2211.1,12.6247]
[1741473149075,1.993,2211.8,2211.1,12.6247]
[1741473150263,1.993,2211.8,2211.6,3.2078]
[1741473158366,1.992,2211.8,2211.6,3.2078]
[1741473162572,6.2546,2211.9,2211.6,3.2078]
[1741473162773,8.2466,2211.9,2211.7,3.157]
[1741473163769,11.3793,2211.9,2211.7,3.157]
[1741473163969,11.3793,2211.9,2211.7,1.3168597]
[1741473164674,11.3793,2211.9,2211.6,3.2078]
[1741473166375,11.3793,2211.9,2211.3,3.2078]
[1741473167479,11.3793,2211.9,2211.4,3.3717]
[1741473167680,11.3793,2211.9,2211.5,3.2792]
[1741473168472,11.3793,2211.9,2211.5,6.6009]
[1741473181688,11.3793,2211.9,2211.5,10.6009]
[1741473182589,3.2078,2212.0,2211.6,3.2078]
[1741473182793,9.5797,2212.3,2211.6,3.2078]
[1741473182978,9.5797,2212.3,2211.7,3.3167]
[1741473183282,1.991,2212.2,2211.7,3.32348825]
[1741473188784,1.9804,2212.2,2211.7,3.32348825]
[1741473191379,1.991,2212.1,2211.7,3.32348825]
[1741473193282,1.991,2212.2,2211.7,3.32348825]
[1741473196489,1.99,2212.4,2211.9,3.2078]
[1741473196691,1.99,2212.4,2212.0,9.6421]
[1741473199297,6.406,2212.6,2212.0,9.6421]
[1741473199593,1.99,2212.5,2212.2,3.2078]
[1741473199796,21.5702,2212.7,2212.3,3.3524]
[1741473199989,1.99,2212.6,2212.4,6.3422]
[1741473204298,27.85,2212.7,2212.4,6.3422]
[1741473204494,18.467,2212.7,2212.4,6.3422]
[1741473204802,3.2078,2212.8,2212.4,6.3422]
[1741473205095,3.0999,2212.7,2212.4,6.3422]
[1741473205401,5.1978,2212.8,2212.4,6.3422]
[1741473205633,1.99,2212.8,2212.4,6.3422]
[1741473206989,1.99,2212.8,2212.4,6.6951415]
[1741473209504,8.2871,2212.9,2212.4,6.6951415]
[1741473216397,8.2871,2212.9,2212.4,3.1307]
[1741473216598,3.1585,2212.8,2212.3,3.3524]
[1741473217202,3.2078,2212.7,2212.3,3.3524]
[1741473217706,3.2472,2212.6,2212.3,3.3524]
[1741473217908,3.3406,2212.5,2212.3,3.3524]
[1741473218308,5.3296,2212.5,2212.2,3.2078]
[1741473218609,3.1585,2212.4,2212.2,3.2078]
[1741473219106,3.0593,2212.3,2212.2,3.2078]
[1741473221113,3.0593,2212.3,2211.9,3.2078]
[1741473238625,3.2078,2212.2,2211.8,3.3956]
[1741473238917,5.2824,2212.1,2211.8,3.3956]
[1741473246608,3.2078,2211.9,2211.7,0.00678825]
[1741473247009,3.2078,2211.9,2211.5,4.0]
[1741473247408,3.2078,2211.6,2211.5,4.0]
[1741473247613,5.1968,2211.6,2211.5,4.0]
[1741473248512,5.1968,2211.6,2211.3,3.21458825]
[1741473248715,9.463,2211.5,2211.3,3.21458825]
[1741473249115,9.463,2211.5,2211.3,0.00678825]
[1741473249418,9.463,2211.5,2211.1,3.3331]
[1741473249617,3.2078,2211.3,2211.1,3.3331]
[1741473249811,1.989,2211.2,2211.1,3.3331]
[1741473250213,1.989,2211.2,2210.6,3.2078]
[1741473250413,5.0757,2211.2,2210.9,0.00678825]
[1741473250617,3.3364,2211.1,2210.9,0.00678825]
[1741473250822,6.4932,2211.0,2210.9,0.00678825]
[1741473251016,6.4932,2211.0,2210.6,3.2078]
[1741473252220,6.4932,2211.0,2210.6,3.21458825]
[1741473253813,6.4932,2211.0,2210.6,0.00678825]
[1741473254321,6.5836568,2211.0,2210.3,3.2052]
[1741473254723,3.2078,2210.7,2210.3,3.2052]
[1741473255022,5.1842,2210.6,2210.3,3.2052]
[1741473255823,5.1842,2210.6,2210.2,0.00678825]
[1741473256316,3.0919,2210.5,2210.2,0.00678825]
[1741473256621,3.2078,2210.3,2210.2,0.00678825]
[1741473256818,3.2078,2210.3,2209.8,6.81084431]
[1741473257019,5.3709,2210.2,2209.8,6.81084431]
[1741473257618,5.3709,2210.2,2209.8,6.4605]
[1741473258118,5.3709,2210.2,2209.8,3.37438825]
[1741473259724,5.3709,2210.2,2209.8,0.00678825]
[1741473261226,3.2078,2210.0,2209.8,0.00678825]
[1741473261426,3.3628,2209.9,2209.8,0.00678825]
[1741473262524,7.3628,2209.9,2209.5,3.1953]
[1741473262729,5.1601,2209.8,2209.5,3.1953]
[1741473262932,5.1601,2209.8,2209.2,3.1294]
[1741473263130,5.1601,2209.8,2209.3,3.2793]
[1741473263723,5.1601,2209.8,2209.3,3.28382552]
[1741473263928,3.2078,2209.7,2209.3,3.28382552]
[1741473264831,3.2078,2209.7,2209.3,0.00452552]
[1741473266030,5.1601,2209.8,2209.3,0.00452552]
[1741473266254,8.3679,2209.8,2209.3,0.00452552]
[1741473267329,1.99,2209.7,2209.3,0.00452552]
[1741473272429,1.99,2209.8,2209.5,3.2078]
[1741473272630,0.33727211,2210.6,2209.6,3.4072]
[1741473272631,3.1148,2210.3,2209.6,3.4072]
[1741473272833,1.99,2210.1,2209.8,3.2078]
[1741473273036,1.99,2210.1,2209.8,3.75091]
[1741473273229,1.99,2210.4,2209.9,0.5431]
[1741473273433,1.99,2210.4,2210.1,3.2078]
[1741473273629,1.99,2210.4,2210.2,9.4202]
[1741473275840,1.99,2210.4,2210.2,6.1754]
[1741473276437,1.99,2210.4,2210.2,9.5596]
[1741473284757,1.99,2210.4,2210.2,6.1754]
[1741473284954,5.2334,2210.4,2210.1,3.2078]
[1741473285257,5.2334,2210.4,2209.8,9.5472]
[1741473285458,3.2714,2210.3,2209.8,9.5472]
[1741473286758,3.21458825,2210.7,2210.1,3.2078]
[1741473287053,3.21458825,2210.7,2210.2,6.2635]
[1741473287270,3.21458825,2210.7,2210.3,3.1867]
[1741473290559,3.21458825,2210.7,2210.4,3.2078]
[1741473303071,0.00678825,2210.7,2210.4,3.2078]
[1741473303766,0.00678825,2210.7,2210.5,2.8736]
[1741473313670,0.00678825,2210.7,2210.5,3.23556495]
[1741473318579,0.00678825,2210.7,2210.5,2.8736]
[1741473320182,0.00678825,2210.7,2210.5,1.24971628]
[1741473322187,0.00678825,2210.7,2210.5,1.60517963]
[1741473322687,0.00678825,2210.7,2210.5,1.24971628]
[1741473323778,0.00678825,2210.7,2210.5,0.62636484]
[1741473329892,0.00678825,2210.7,2210.4,3.2078]
[1741473330295,0.00678825,2210.7,2210.2,3.1046]
[1741473332289,3.2078,2210.5,2210.0,3.2078]
[1741473332494,10.0596,2210.4,2210.0,3.2078]
[1741473332994,3.2078,2210.2,2209.8,5.7449]
[1741473334701,3.2078,2210.2,2209.8,2.8817]
[1741473335997,3.2078,2209.9,2209.8,2.8817]
[1741473336299,5.1958,2209.9,2209.8,2.8817]
[1741473339699,1.988,2209.9,2209.8,2.8817]
[1741473340002,1.988,2209.9,2209.7,2.8792]
[1741473340303,5.1958,2209.9,2209.7,5.6489]
[1741473346005,3.2078,2209.9,2209.7,5.6489]
[1741473346202,1.987,2210.0,2209.8,2.9552]
[1741473348001,8.86040183,2209.9,2208.7,3.2078]
[1741473348220,3.2078,2209.4,2208.8,8.2911]
[1741473348409,7.3929,2209.3,2208.8,8.2911]
[1741473348607,10.2753,2209.3,2208.8,8.2911]
[1741473349306,3.2078,2209.1,2208.8,8.2911]
[1741473349699,3.2078,2209.1,2208.8,8.64878034]
[1741473350501,0.781131,2209.2,2208.8,8.64878034]
[1741473352703,3.2078,2209.1,2208.8,8.64878034]
[1741473352905,3.2078,2209.1,2208.8,8.2911]
[1741473353299,3.2078,2209.1,2208.7,3.2078]
[1741473354404,3.2983346,2209.1,2208.6,0.35765547]
[1741473354703,3.2983346,2209.1,2208.3,8.6061]
[1741473355708,3.2983346,2209.1,2208.4,3.2078]
[1741473356098,3.2983346,2209.1,2208.4,4.11817332]
[1741473356303,3.2983346,2209.1,2208.4,3.57470332]
[1741473359707,0.23865856,2209.2,2208.8,3.2078]
[1741473360013,12.4559589,2209.7,2208.9,8.4935]
[1741473360208,1.988,2209.6,2208.9,8.4935]
[1741473361008,0.00678825,2209.5,2208.9,8.4935]
[1741473361215,0.00678825,2209.5,2209.1,3.2078]
[1741473362515,0.00678825,2209.5,2209.1,3.7511]
[1741473363014,0.00678825,2209.5,2209.1,3.2078]
[1741473363213,0.00678825,2209.5,2209.1,3.75109]
[1741473363600,0.00678825,2209.5,2209.2,3.2078]
[1741473363805,0.00678825,2209.5,2209.3,5.4338]
[1741473364209,0.00678825,2209.5,2209.4,2.7879]
[1741473369112,3.54329429,2210.0,2209.4,6.7879]
[1741473369418,0.33549429,2210.0,2209.6,3.2078]
[1741473369613,1.987,2210.1,2209.7,2.7341]
[1741473369818,2.75082843,2210.1,2209.8,2.7953]
[1741473370316,0.76382843,2210.1,2209.8,2.7953]
[1741473390224,1.986,2210.0,2209.7,0.00678825]
[1741473390425,2.74982843,2210.0,2209.7,0.00678825]
[1741473392329,2.74982843,2210.0,2209.7,0.00266743]
[1741473395726,3.2078,2209.9,2209.3,3.2078]
[1741473395933,2.9211,2209.8,2209.3,3.2078]
[1741473396118,2.9111,2209.7,2209.3,3.2078]
[1741473396325,1.986,2209.6,2209.3,3.2078]
[1741473396523,2.74982843,2209.6,2209.3,3.2078]
[1741473397824,0.09051821,2209.5,2208.4,0.36378255]
[1741473398032,3.2078,2208.9,2208.1,5.5052]
[1741473398227,10.5127,2208.8,2208.1,5.87282088]
[1741473398429,0.76382843,2208.7,2208.1,5.87282088]
[1741473398726,0.76382843,2208.7,2208.1,0.36762088]
[1741473399028,0.00678825,2208.6,2208.0,3.2078]
[1741473399233,3.21458825,2208.6,2208.0,3.2078]
[1741473400135,3.21458825,2208.6,2208.1,2.902]
[1741473400530,3.21458825,2208.6,2208.1,3.26304724]
[1741473400732,3.21458825,2208.6,2208.1,5.96724724]
[1741473401035,3.21458825,2208.6,2208.1,8.78024724]
[1741473401732,3.21458825,2208.6,2208.1,5.96724724]
[1741473403035,3.21458825,2208.6,2208.0,3.2078]
[1741473407133,1.987,2208.5,2208.0,3.2078]
[1741473407329,2.75082843,2208.5,2208.1,2.9461]
[1741473407754,2.75082843,2208.5,2208.2,2.8777]
[1741473408335,1.987,2208.5,2208.2,2.8777]
[1741473413240,1.987,2208.5,2208.2,5.6627]
[1741473415134,3.21458825,2208.6,2208.2,5.6627]
[1741473415328,0.00678825,2208.6,2208.4,3.2078]
[1741473415531,0.00678825,2208.6,2208.5,2.96]
[1741473416937,0.76120381,2209.2,2208.5,6.96]
[1741473417239,0.76120381,2209.2,2208.7,3.2078]
[1741473417438,0.76120381,2209.2,2208.8,5.6026]
[1741473417835,0.76120381,2209.2,2208.9,2.9612]
[1741473418039,0.76799206,2209.2,2208.9,2.9612]
[1741473432560,10.946,2209.3,2208.9,2.9612]
[1741473433659,6.0223,2209.7,2209.1,3.2078]
[1741473433857,0.00678825,2209.3,2209.2,5.5785]
[1741473434051,0.00678825,2209.3,2209.2,6.12178]
[1741473434559,1.986,2209.6,2209.3,0.54324]
[1741473434859,1.986,2209.6,2209.2,5.5785]
[1741473435058,1.986,2209.6,2209.3,2.8591]
[1741473435258,2.8922,2209.8,2209.3,2.8591]
[1741473435459,0.00678825,2209.7,2209.3,2.8591]
[1741473436562,0.00678825,2209.7,2209.4,3.2078]
[1741473441364,0.00678825,2209.7,2209.4,3.75103]
[1741473441688,0.00678825,2209.7,2209.4,3.2078]
[1741473441876,0.00678825,2209.7,2209.5,0.54318]
[1741473442071,0.00678825,2209.7,2209.6,5.6992]
[1741473442373,0.00678825,2209.7,2209.6,6.24238]
[1741473442866,0.00678825,2209.7,2209.6,6.60768884]
[1741473443266,0.7474403,2210.1,2209.6,6.60768884]
[1741473443267,0.7474403,2210.2,2209.6,10.06450884]
[1741473443467,2.7334403,2210.5,2209.9,3.7509]
[1741473443667,2.7334403,2210.5,2210.0,8.2038]
[1741473444474,2.74022855,2210.5,2210.0,8.21058825]
[1741473445073,0.75422855,2210.5,2210.0,8.21058825]
[1741473447577,0.75422855,2210.5,2210.3,3.2078]
[1741473456089,0.75422855,2210.5,2210.4,8.5413]
[1741473459084,7.96202855,2210.5,2210.0,0.00678825]
[1741473459385,7.96202855,2210.5,2209.3,3.2078]
[1741473459386,3.2078,2210.2,2209.3,3.2078]
[1741473459583,10.2394403,2210.4,2209.3,3.2078]
[1741473459584,3.2078,2209.6,2209.3,3.2078]
[1741473459784,7.5806,2209.5,2209.3,3.2078]
[1741473459977,0.7474403,2209.4,2209.3,3.2078]
[1741473460182,0.7474403,2209.4,2208.9,3.2078]
[1741473460382,0.7474403,2209.4,2209.1,0.00678825]
[1741473460581,0.75422855,2209.4,2209.1,0.00678825]
[1741473463192,3.2078,2209.3,2209.1,0.00678825]
[1741473472292,3.2078,2209.3,2208.7,3.2078]
[1741473472591,3.2078,2209.3,2208.7,3.56170754]
[1741473473391,3.2078,2209.3,2208.8,0.00678825]
[1741473479097,3.2078,2209.0,2208.8,0.00678825]
[1741473479293,7.5705,2208.9,2208.8,0.00678825]
[1741473479798,8.31543417,2208.9,2208.8,0.00678825]
[1741473486898,3.21458825,2209.4,2208.8,0.00678825]
[1741473487198,3.2078,2209.1,2208.8,0.00678825]
[1741473488701,2.8123,2209.0,2208.8,0.00678825]
[1741473488909,1.985,2208.9,2208.8,0.00678825]
[1741473492211,1.985,2208.9,2208.8,0.0028477]
[1741473492515,1.985,2208.9,2208.7,2.7233]
[1741473492806,2.7627,2208.8,2208.7,2.7233]
[1741473495808,2.7627,2208.8,2208.5,0.00678825]
[1741473496013,3.2078,2208.6,2208.2,2.8462]
[1741473496214,1.985,2208.5,2208.2,2.8462]
[1741473496516,4.7415,2208.5,2208.2,3.20101226]
[1741473496712,4.7415,2208.5,2208.2,2.8462]
[1741473497006,0.73414523,2208.4,2208.1,2.783]
[1741473497207,2.8504,2208.3,2208.1,2.783]
[1741473497411,2.8504,2208.3,2208.0,5.5208]
[1741473497802,2.8504,2208.3,2207.9,3.56628758]
[1741473499213,3.2078,2208.0,2207.2,3.2078]
[1741473499411,4.7349,2207.9,2207.3,8.7537]
[1741473499712,3.2078,2207.7,2207.3,6.21378436]
[1741473499916,0.73414523,2207.7,2207.4,2.9037]
[1741473500114,0.74093348,2207.8,2207.4,2.9037]
[1741473502518,0.74093348,2207.8,2207.3,6.21378436]
[1741473502922,0.74093348,2207.8,2207.3,0.36378436]
[1741473503121,0.74093348,2207.8,2207.4,2.933]
[1741473503321,0.74093348,2207.8,2207.4,5.7088]
[1741473505528,1.985,2207.7,2207.4,5.7088]
[1741473508231,0.74093348,2207.8,2207.4,5.7088]
[1741473508423,0.00678825,2207.8,2207.4,5.7088]
[1741473511528,0.00109136,2207.8,2207.4,5.7088]
[1741473511735,0.73414523,2207.9,2207.5,3.2078]
[1741473511930,1.985,2208.1,2207.6,0.54366]
[1741473512242,0.73033192,2208.2,2207.8,3.2078]
[1741473512426,5.1928,2208.3,2207.9,5.5951]
[1741473512622,0.73033192,2208.2,2207.9,5.5951]
[1741473512836,5.1928,2208.3,2207.9,5.5951]
[1741473513039,0.73033192,2208.2,2207.9,5.5951]
[1741473513330,1.99178825,2208.3,2207.9,5.5951]
[1741473518128,0.00678825,2208.3,2207.9,5.5951]
[1741473524038,0.73033192,2208.4,2207.9,6.1387]
[1741473524238,0.73033192,2208.4,2207.9,5.5951]
[1741473525335,0.73712017,2208.4,2207.9,5.5951]
[1741473526233,0.73712017,2208.4,2208.1,3.2078]
[1741473526429,0.73712017,2208.4,2208.2,2.8963]
[1741473527843,0.73712017,2208.4,2208.1,3.2078]
[1741473530441,0.73712017,2208.4,2207.8,0.00678825]
[1741473530442,3.2078,2208.3,2207.8,0.00678825]
[1741473533330,3.2078,2207.9,2207.3,0.35312825]
[1741473533535,3.2078,2207.6,2206.5,2.985]
[1741473533748,3.2078,2207.3,2206.4,3.2078]
[1741473533936,7.6661,2207.2,2206.4,3.56947158]
[1741473534138,3.2078,2207.0,2206.4,3.56947158]
[1741473534541,0.00678825,2206.9,2206.5,0.00678825]
[1741473534843,1.985,2206.8,2206.5,0.00678825]
[1741473535250,2.8499,2206.7,2206.5,0.00678825]
[1741473535444,3.58023192,2206.7,2206.5,0.00678825]
[1741473536339,3.58023192,2206.7,2206.0,3.2078]
[1741473536540,2.9602,2206.6,2206.0,3.2078]
[1741473536741,3.69053192,2206.6,2206.0,3.2078]
[1741473538248,3.69053192,2206.6,2206.0,3.57305769]
[1741473540549,0.73033192,2206.6,2206.0,3.57305769]
[1741473540849,1.986,2206.6,2206.0,4.11710769]
[1741473541055,3.2078,2207.3,2206.3,3.2078]
[1741473541243,0.7280089,2207.5,2206.9,3.2078]
[1741473541440,2.7140089,2207.6,2206.8,3.2078]
[1741473542241,0.00678825,2207.4,2206.8,3.2078]
[1741473542748,0.00678825,2207.4,2207.1,3.2078]
[1741473555756,0.00678825,2207.4,2207.2,5.7833]
[1741473556052,16.30545326,2207.9,2207.2,5.7833]
[1741473556349,3.2078,2208.2,2207.7,3.2078]
[1741473556554,4.7757,2208.3,2207.8,5.7833]
[1741473556754,1.986,2208.3,2207.8,8.7384]
[1741473557149,1.99278825,2208.3,2207.8,8.74518825]
[1741473557959,1.99278825,2208.3,2207.8,9.11308269]
[1741473559061,1.99278825,2208.3,2208.0,3.2078]
[1741473559062,0.00678825,2208.3,2208.0,3.2078]
[1741473565259,0.00678825,2208.3,2207.8,9.10351111]
[1741473565459,0.00678825,2208.3,2207.8,12.31131111]
[1741473570875,0.00678825,2208.3,2208.1,3.2078]
[1741473571071,0.71461539,2208.8,2208.2,2.91]
[1741473571364,2.8618,2208.9,2208.5,3.2078]
[1741473571564,5.5623,2209.3,2208.6,2.91]
[1741473571764,1.985,2209.2,2208.6,2.91]
[1741473572066,1.985,2209.2,2208.8,3.2078]
[1741473572266,0.00678825,2209.1,2208.8,3.2078]
[1741473572466,0.00678825,2209.1,2208.9,2.7786]
[1741473575571,0.00678825,2209.1,2208.9,5.9864]
[1741473578480,0.00678825,2209.1,2209.0,2.8662]
[1741473578670,0.00678825,2209.1,2208.9,2.7786]
[1741473578975,0.00678825,2209.1,2208.9,5.9864]
[1741473579575,1.984,2209.4,2208.9,5.9864]
[1741473579775,1.984,2209.4,2209.0,2.8662]
[1741473580272,1.984,2209.4,2209.1,2.6987]
[1741473580873,1.984,2209.4,2209.2,3.2078]
[1741473581074,2.68143631,2209.4,2209.2,3.2078]
[1741473583787,0.69743631,2209.4,2209.2,3.2078]
[1741473585678,0.00678825,2209.5,2209.2,3.2078]
[1741473592781,0.00678825,2209.5,2209.3,3.2078]
[1741473592985,0.00678825,2209.5,2209.2,3.2078]
[1741473593181,0.00678825,2209.5,2209.1,2.6987]
[1741473600294,0.00678825,2209.5,2209.0,0.00678825]
[1741473600588,0.09052231,2209.4,2209.0,0.00678825]
[1741473600794,2.07352231,2209.4,2209.1,3.2078]
[1741473600986,2.07352231,2209.4,2209.0,0.00678825]
[1741473600987,2.9351,2209.3,2209.0,0.00678825]
[1741473601187,4.8175,2209.2,2209.0,0.00678825]
[1741473601394,3.44613631,2209.1,2208.6,2.6496]
[1741473601893,3.2078,2209.0,2208.6,2.6496]
[1741473602097,3.2078,2209.0,2208.1,6.1041]
[1741473602286,3.2078,2208.6,2208.1,6.1041]
[1741473602494,7.6728,2208.5,2208.3,0.00678825]
[1741473602900,10.4731,2208.5,2208.3,0.00678825]
[1741473607193,1.983,2208.5,2208.3,0.00274682]
[1741473608500,1.984,2208.5,2208.3,0.00274682]
[1741473610295,8.741,2209.0,2208.4,3.2078]
[1741473610494,1.984,2208.9,2208.5,8.7137]
[1741473612991,8.741,2209.0,2208.5,8.7137]
[1741473613195,3.2078,2209.0,2208.5,8.7137]
[1741473613497,1.984,2209.1,2208.7,3.2078]
[1741473613996,0.09052231,2209.4,2208.7,3.2078]
[1741473614201,0.09052231,2209.4,2209.0,3.2078]
[1741473614393,0.09052231,2209.4,2209.1,8.363]
[1741473615800,0.00678825,2209.5,2209.1,8.363]
[1741473616000,0.00678825,2209.5,2209.3,3.2078]
[1741473622523,0.00678825,2209.5,2209.1,8.363]
[1741473622822,0.00678825,2209.5,2209.4,3.2078]
[1741473626424,0.00678825,2209.5,2209.4,3.57150716]
[1741473630727,0.00678825,2209.5,2209.4,0.36370716]
[1741473630922,0.00678825,2209.5,2209.2,3.2078]
[1741473632332,0.00678825,2209.5,2209.2,3.57523835]
[1741473647835,2.69928825,2209.5,2209.1,5.538]
[1741473648233,2.9191,2209.4,2209.0,0.35404566]
[1741473648533,3.2078,2209.1,2208.6,7.3968]
[1741473648738,2.7404,2209.0,2208.6,7.3968]
[1741473650934,2.7404,2209.0,2208.5,3.2078]
[1741473651167,3.2078,2208.7,2208.3,0.00274682]
[1741473651340,5.7276,2208.6,2208.3,0.00274682]
[1741473656339,3.2078,2208.4,2208.3,0.00274682]
[1741473668245,5.7276,2208.6,2208.3,0.00274682]
[1741473668844,3.2078,2208.4,2208.3,0.00274682]
[1741473669238,5.7276,2208.6,2208.3,0.00274682]
[1741473669549,3.2078,2208.4,2208.3,0.00274682]
[1741473679958,3.2078,2208.4,2207.8,8.9476]
[1741473680158,1.983,2208.3,2207.8,9.39403246]
[1741473680553,2.7442,2208.2,2207.8,9.39403246]
[1741473681159,2.75098825,2208.2,2207.8,9.40082071]
[1741473686367,2.75098825,2208.2,2207.8,6.19302071]
[1741473691265,5.49928825,2208.2,2207.8,6.19302071]
[1741473692760,3.2078,2208.1,2207.8,5.74658825]
[1741473693669,3.2078,2208.1,2207.2,3.2078]
[1741473693864,6.0992,2208.1,2207.3,8.3609]
[1741473694165,6.0992,2208.1,2207.3,8.82091812]
[1741473694758,3.2078,2207.7,2207.3,8.82091812]
[1741473694969,5.1908,2207.7,2207.5,0.00678825]
[1741473695165,5.7385,2207.6,2207.3,5.5545]
[1741473695370,3.2078,2207.4,2207.3,2.7796]
[1741473695777,3.2078,2207.4,2207.0,2.8596]
[1741473696068,1.983,2207.3,2207.0,2.8596]
[1741473696969,1.983,2207.3,2207.0,3.30498714]
[1741473697766,1.983,2207.3,2207.0,2.8596]
[1741473698165,3.2078,2207.1,2206.8,2.7749]
[1741473698668,5.9873,2207.1,2206.8,2.7749]
[1741473699570,3.2078,2207.1,2206.8,2.7749]
[1741473699765,1.983,2207.3,2206.8,5.9827]
[1741473700077,5.1908,2207.6,2206.8,5.9827]
[1741473700574,1.983,2207.6,2207.1,3.2078]
[1741473700770,1.983,2207.6,2207.2,8.2418]
[1741473705575,5.1908,2207.6,2207.2,8.2418]
[1741473715078,5.4537,2207.5,2207.2,8.2418]
[1741473727792,5.4537,2207.5,2207.2,2.7772]
[1741473727983,8.1965,2207.5,2207.2,2.7772]
[1741473734592,5.4537,2207.5,2207.2,2.7772]
[1741473734789,5.4537,2207.5,2207.3,2.8499]
[1741473735190,2.7705,2207.5,2207.3,2.8499]
[1741473735387,2.7705,2207.5,2207.3,5.6191]
[1741473740597,5.9783,2207.5,2207.3,5.6191]
[1741473741285,5.9783,2207.5,2207.3,3.06803594]
[1741473741694,5.9783,2207.5,2207.3,2.7692]
[1741473744196,2.7705,2207.5,2207.3,2.7692]
[1741473744800,5.9783,2207.5,2207.3,2.7692]
[1741473745297,3.2078,2207.9,2207.3,2.7692]
[1741473745498,2.4718756,2208.1,2207.5,3.2078]
[1741473745800,2.4718756,2208.1,2207.6,2.5412]
[1741473745992,2.4718756,2208.1,2207.7,2.4386]
[1741473746395,2.4718756,2208.1,2207.8,2.4346]
[1741473749804,0.0905756,2208.1,2207.8,2.4346]
[1741473758505,2.5302756,2208.1,2207.8,2.4346]
[1741473758713,2.5302756,2208.1,2207.7,2.4386]
[1741473758907,5.0121756,2208.1,2207.7,2.4386]
[1741473759403,5.0121756,2208.1,2207.8,3.2078]
[1741473763012,2.5302756,2208.1,2207.8,3.2078]
[1741473764204,2.5302756,2208.1,2207.7,2.4386]
[1741473764408,2.5302756,2208.1,2207.8,3.2078]
[1741473770516,1.981,2208.0,2207.8,3.2078]
[1741473770814,2.4736,2207.9,2207.8,3.2078]
[1741473773112,2.4736,2207.9,2207.4,0.5852]
[1741473773308,0.1927,2207.8,2207.1,3.2078]
[1741473773505,0.603,2207.7,2207.1,6.3334]
[1741473773711,1.981,2207.6,2207.1,6.3334]
[1741473773916,2.3862,2207.5,2207.1,6.3334]
[1741473775807,0.603,2207.7,2207.1,6.3334]
[1741473776013,1.981,2207.6,2207.1,6.3334]
[1741473780124,1.981,2207.6,2207.2,3.2078]
[1741473797026,1.981,2207.6,2207.1,3.1256]
[1741473797830,1.981,2207.6,2207.2,3.2078]
[1741473805443,1.981,2207.6,2207.1,3.1256]
[1741473805644,1.981,2207.6,2207.2,3.2078]
[1741473840260,3.2078,2207.4,2207.1,3.1256]
[1741473840658,1.2347,2207.3,2206.8,0.6362]
[1741473840850,1.979,2207.2,2206.8,0.6362]
[1741473843164,2.5762,2207.2,2206.8,0.6362]
[1741473843957,2.5762,2207.2,2206.9,0.6012]
[1741473846560,3.2078,2207.1,2206.9,0.6012]
[1741473847057,0.5902,2207.0,2206.9,0.6012]
[1741473865671,0.5902,2207.0,2206.9,0.24200965]
[1741473869478,0.5902,2207.0,2206.9,0.11776279]
[1741473876188,0.5902,2207.0,2206.9,0.04815524]
[1741473878483,3.798,2207.0,2206.9,0.04815524]
[1741473880190,3.798,2207.0,2206.9,0.02353878]
[1741473884287,3.798,2207.0,2206.8,0.6362]
[1741473884490,5.776,2207.0,2206.8,0.6362]
[1741473886693,5.776,2207.0,2206.8,0.26093694]
[1741473896901,5.776,2207.0,2206.8,0.10875754]
[1741473897402,5.776,2207.0,2206.6,0.42782081]
[1741473897597,5.776,2207.0,2206.4,3.2078]
[1741473897598,0.6436,2206.9,2206.4,3.2078]
[1741473899398,0.6436,2206.9,2206.1,3.2078]
[1741473899999,0.6436,2206.9,2206.2,0.6419]
[1741473901702,0.6436,2206.9,2206.2,1.04061415]
[1741473902602,0.6436,2206.9,2206.3,0.6432]
[1741473909404,3.8514,2206.9,2206.3,3.851]
[1741473914612,0.6436,2206.9,2206.3,0.6432]
[1741473914811,3.8514,2206.9,2206.3,3.851]
[1741473917910,0.6292,2206.8,2206.3,3.851]
[1741473918317,0.6079,2206.7,2206.3,3.851]
[1741473924720,0.6079,2206.7,2206.3,4.39499]
[1741473924914,0.6079,2206.7,2206.3,3.851]
[1741473925818,0.6079,2206.7,2206.3,4.39499]
[1741473926421,5.1848,2206.9,2206.3,3.851]
[1741473926621,5.1848,2206.9,2206.3,4.39497]
[1741473929623,5.1848,2206.9,2206.3,3.851]
[1741473932125,0.5989,2206.8,2206.3,3.851]
[1741473932424,0.5989,2206.8,2206.3,0.6432]
[1741473934026,0.5989,2206.8,2206.3,3.851]
[1741473942826,0.5989,2206.8,2206.3,4.39498]
[1741473965352,0.5989,2206.8,2206.4,0.54396]
[1741473965549,0.5989,2206.8,2206.5,0.5879]
[1741473965749,0.5989,2206.8,2206.6,0.6401]
[1741473967655,3.21458825,2207.0,2206.6,0.6401]
[1741473968749,3.21458825,2207.0,2206.7,0.54389]
[1741473968949,0.00678825,2207.0,2206.8,0.6139]
[1741473969160,0.00678825,2207.0,2206.9,0.5913]
[1741473974267,0.6417,2207.1,2206.9,0.5913]
[1741473974669,1.974,2207.4,2206.9,0.5913]
[1741473974862,0.6048,2207.3,2206.9,0.5913]
[1741473975470,0.61158825,2207.3,2206.9,0.59808825]
[1741473975760,3.2078,2207.1,2206.0,3.2078]
[1741473975967,3.2078,2206.6,2206.0,3.2078]
[1741473976263,1.2402,2206.5,2206.0,3.2078]
[1741473977265,1.2402,2206.5,2206.0,3.60650707]
[1741473979070,0.6376,2206.4,2206.0,3.60650707]
[1741473980167,5.1818,2206.6,2206.0,3.60650707]
[1741473980372,0.80123273,2206.6,2206.1,1.974]
[1741473980573,1.2138,2207.0,2206.4,3.2078]
[1741473980873,1.2138,2207.0,2206.5,0.6465]
[1741473982071,0.616,2207.0,2206.5,0.6465]